fUST/lending_fUST_20250311
["ID","MTS","AMOUNT","RATE_DAILY","PERIOD"]
[355864277,1741645535877,-500.0,0.00043882,2]
[355864278,1741645535904,-500.0,0.00043882,2]
[355864279,1741645535931,-500.0,0.00043882,2]
[355864280,1741645535957,-500.0,0.00043882,2]
[355864281,1741645535984,-500.0,0.00043882,2]
[355864282,1741645536009,-500.0,0.00043882,2]
[355864283,1741645536036,-500.0,0.00043882,2]
[355864284,1741645536063,-500.0,0.00043882,2]
[355864285,1741645536088,-500.0,0.00043882,2]
[355864286,1741645536115,-500.0,0.00043882,2]
[355864287,1741645536142,-500.0,0.00043882,2]
[355864288,1741645536167,-500.0,0.00043882,2]
[355864289,1741645536194,-500.0,0.00043882,2]
[355864290,1741645536220,-500.0,0.00043882,2]
[355864291,1741645536246,-500.0,0.00043882,2]
[355864292,1741645536272,-500.0,0.00043882,2]
[355864293,1741645536298,-500.0,0.00043882,2]
[355864294,1741645536323,-500.0,0.00043882,2]
[355864295,1741645536349,-500.0,0.00043882,2]
[355864296,1741645536374,-500.0,0.00043882,2]
[355864297,1741645536402,-500.0,0.00043882,2]
[355864298,1741645536430,-500.0,0.00043882,2]
[355864299,1741645536457,-500.0,0.00043882,2]
[355864300,1741645536485,-500.0,0.00043882,2]
[355864301,1741645536514,-500.0,0.00043882,2]
[355864302,1741645536542,-500.0,0.00043882,2]
[355864303,1741645536571,-500.0,0.00043882,2]
[355864304,1741645536599,-500.0,0.00043882,2]
[355864305,1741645536627,-500.0,0.00043882,2]
[355864306,1741645536655,-500.0,0.00043882,2]
[355864307,1741645536682,-500.0,0.00043882,2]
[355864308,1741645536709,-500.0,0.00043882,2]
[355864309,1741645536736,-500.0,0.00043882,2]
[355864310,1741645536763,-500.0,0.00043882,2]
[355864311,1741645536793,-500.0,0.00043882,2]
[355864312,1741645536821,-500.0,0.00043882,2]
[355864313,1741645536848,-650.0,0.00043882,2]
[355864314,1741645536875,-500.0,0.00043882,2]
[355864315,1741645536903,-500.0,0.00043882,2]
[355864316,1741645536931,-300.0,0.00043882,2]
[355864317,1741645536956,-500.0,0.00043882,2]
[355864318,1741645536977,-800.0,0.00045,30]
[355864319,1741645537000,-800.0,0.00045,30]
[355864320,1741645537021,-390.24,0.00045,30]
[355864321,1741645537045,-165.91783706,0.00045514,120]
[355864322,1741645537067,-150.0,0.00046355,2]
[355864323,1741645537089,-3562.75713215,0.0004699,4]
[355864324,1741645537111,-20012.651557,0.00047,2]
[355864325,1741645537134,-300.0,0.00047,120]
[355864326,1741645537156,-10000.0,0.00047,10]
[355864327,1741645537179,-6011.09,0.00047519,120]
[355864328,1741645537202,-1329.2066151,0.0004752,4]
[355864329,1741645537224,-3562.75713215,0.0004759,4]
[355864330,1741645537246,-183.44,0.00047699,30]
[355864331,1741645537267,-500.0,0.00047699,120]
[355864332,1741645537288,-1991.11,0.00047699,2]
[355864333,1741645537315,-151.0,0.000477,120]
[355864334,1741645537341,-151.0,0.000477,30]
[355864335,1741645537363,-151.0,0.000477,30]
[355864336,1741645537387,-151.0,0.000477,120]
[355864337,1741645537414,-158.150758,0.000477,120]
[355864338,1741645537440,-158.150758,0.000477,120]
[355864339,1741645537464,-151.0,0.000477,120]
[355864340,1741645537488,-151.0,0.000477,120]
[355864341,1741645537511,-368.282262,0.000477,120]
[355864342,1741645537534,-368.282262,0.000477,120]
[355864343,1741645537557,-151.0,0.000478,120]
[355864344,1741645537580,-151.0,0.000478,30]
[355864345,1741645537604,-151.0,0.000478,30]
[355864346,1741645537627,-151.0,0.000478,120]
[355864347,1741645537650,-158.150758,0.000478,120]
[355864348,1741645537674,-158.150758,0.000478,120]
[355864349,1741645537697,-151.0,0.000478,120]
[355864350,1741645537720,-151.0,0.000478,120]
[355864351,1741645537743,-368.282262,0.000478,120]
[355864352,1741645537768,-368.282262,0.000478,120]
[355864353,1741645537791,-151.0,0.000479,120]
[355864354,1741645537813,-151.0,0.000479,30]
[355864355,1741645537837,-151.0,0.000479,30]
[355864356,1741645537859,-151.0,0.000479,120]
[355864357,1741645537881,-151.0,0.000479,120]
[355864358,1741645537903,-151.0,0.000479,120]
[355864359,1741645537927,-158.150758,0.000479,120]
[355864360,1741645537950,-158.150758,0.000479,120]
[355864361,1741645537973,-151.0,0.000479,120]
[355864362,1741645537994,-151.0,0.000479,120]
[355864363,1741645538016,-151.0,0.000479,120]
[355864364,1741645538038,-368.282262,0.000479,120]
[355864365,1741645538061,-368.282262,0.000479,120]
[355864366,1741645538084,-500.0,0.00047973,120]
[355864367,1741645538107,-170.0,0.00048,90]
[355864368,1741645538132,-169.0,0.00048,90]
[355864369,1741645538156,-151.0,0.00048005,120]
[355864370,1741645538181,-151.0,0.00048005,30]
[355864371,1741645538204,-200.42906,0.00048005,30]
[355864372,1741645538226,-151.0,0.00048005,120]
[355864373,1741645538249,-151.0,0.00048005,120]
[355864374,1741645538271,-151.0,0.00048005,120]
[355864375,1741645538295,-158.150758,0.00048005,120]
[355864376,1741645538318,-158.150758,0.00048005,120]
[355864377,1741645538342,-151.0,0.00048005,120]
[355864378,1741645538365,-151.0,0.00048005,120]
[355864379,1741645538388,-151.0,0.00048005,120]
[355864380,1741645538414,-368.282262,0.00048005,120]
[355864381,1741645538631,-368.282262,0.00048005,120]
[355864382,1741645538652,-151.0,0.00048015,120]
[355864383,1741645538676,-151.0,0.00048015,120]
[355864384,1741645538701,-151.0,0.00048015,30]
[355864385,1741645538725,-151.0,0.00048015,120]
[355864386,1741645538749,-151.0,0.00048015,120]
[355864387,1741645538772,-151.0,0.00048015,120]
[355864388,1741645538798,-158.150758,0.00048015,120]
[355864389,1741645538821,-158.150758,0.00048015,120]
[355864390,1741645538843,-151.0,0.00048015,120]
[355864391,1741645538865,-233.609677,0.00048015,120]
[355864392,1741645538888,-151.0,0.00048015,120]
[355864393,1741645538910,-368.282262,0.00048015,120]
[355864394,1741645538933,-368.282262,0.00048015,120]
[355864395,1741645538956,-161.03017844,0.00048082,120]
[355864396,1741645538978,-491.61295141,0.00048247,120]
[355864397,1741645539000,-2114.44589435,0.00048258,23]
[355864398,1741645539022,-3000.0,0.00048293,2]
[355864399,1741645539044,-1000.0,0.00048293,60]
[355864400,1741645539067,-3562.75713215,0.00048309,4]
[355864401,1741645539089,-151.0,0.00048319,30]
[355864402,1741645539112,-151.0,0.00048319,120]
[355864403,1741645539136,-151.0,0.00048319,120]
[355864404,1741645539159,-151.0,0.00048319,120]
[355864405,1741645539182,-158.150758,0.00048319,120]
[355864406,1741645539205,-158.150758,0.00048319,120]
[355864407,1741645539229,-151.0,0.00048319,120]
[355864408,1741645539252,-151.0,0.00048319,120]
[355864409,1741645539275,-368.282262,0.00048319,120]
[355864410,1741645539299,-368.282262,0.00048319,120]
[355864411,1741645539321,-166.0,0.00048344,30]
[355864412,1741645539344,-166.0,0.00048344,30]
[355864413,1741645539366,-168.0,0.00048344,30]
[355864414,1741645539388,-166.0,0.00048344,30]
[355864415,1741645539413,-168.0,0.00048344,30]
[355864416,1741645539436,-166.0,0.00048344,30]
[355864417,1741645539459,-168.0,0.00048344,30]
[355864418,1741645539485,-298.85875515,0.00048344,30]
[355864419,1741645539508,-352.0,0.00048344,30]
[355864420,1741645539532,-352.0,0.00048344,30]
[355864421,1741645539556,-352.0,0.00048344,30]
[355864422,1741645539580,-352.0,0.00048344,30]
[355864423,1741645539603,-352.0,0.00048344,30]
[355864424,1741645539627,-352.0,0.00048344,30]
[355864425,1741645539651,-352.0,0.00048344,30]
[355864426,1741645539674,-352.0,0.00048344,30]
[355864427,1741645539698,-352.0,0.00048344,30]
[355864428,1741645539722,-316.0,0.00048344,30]
[355864429,1741645539745,-352.0,0.00048344,30]
[355864430,1741645539769,-316.0,0.00048344,30]
[355864431,1741645539792,-352.0,0.00048344,30]
[355864432,1741645539817,-316.0,0.00048344,30]
[355864433,1741645539839,-340.0,0.00048344,30]
[355864434,1741645539861,-316.0,0.00048344,30]
[355864435,1741645539882,-316.0,0.00048344,30]
[355864436,1741645539904,-316.0,0.00048344,30]
[355864437,1741645539926,-316.0,0.00048344,30]
[355864438,1741645539947,-316.0,0.00048344,30]
[355864439,1741645539968,-316.0,0.00048344,30]
[355864440,1741645539990,-316.0,0.00048344,30]
[355864441,1741645540011,-316.0,0.00048344,30]
[355864442,1741645540032,-230.29398366,0.00048344,30]
[355864446,1741645629139,-5760.63,0.00046999,120]
[355864447,1741645629160,-996.9049613,0.0004752,4]
[355864448,1741645629180,-1000.0,0.00047863,2]
[355864449,1741645629200,-1000.0,0.00047863,2]
[355864450,1741645629222,-1000.0,0.00047863,2]
[355864451,1741645629243,-1000.0,0.00047863,2]
[355864452,1741645629264,-1753.62730091,0.000479,11]
[355864453,1741645629285,-85.70601634,0.00048344,30]
[355864454,1741645629307,-316.0,0.00048344,30]
[355864455,1741645629328,-316.0,0.00048344,30]
[355864456,1741645629348,-316.0,0.00048344,30]
[355864457,1741645629368,-316.0,0.00048344,30]
[355864458,1741645629388,-316.0,0.00048344,30]
[355864459,1741645629408,-316.0,0.00048344,30]
[355864460,1741645629431,-316.0,0.00048344,30]
[355864461,1741645629454,-316.0,0.00048344,30]
[355864462,1741645629475,-316.0,0.00048344,30]
[355864463,1741645629496,-316.0,0.00048344,30]
[355864464,1741645629519,-316.0,0.00048344,30]
[355864465,1741645629560,-316.0,0.00048344,30]
[355864466,1741645629580,-316.0,0.00048344,30]
[355864467,1741645629600,-316.0,0.00048344,30]
[355864468,1741645629620,-316.0,0.00048344,30]
[355864469,1741645629642,-316.0,0.00048344,30]
[355864470,1741645629662,-316.0,0.00048344,30]
[355864471,1741645629683,-316.0,0.00048344,30]
[355864472,1741645629704,-316.0,0.00048344,30]
[355864473,1741645629724,-316.0,0.00048344,30]
[355864474,1741645629744,-316.0,0.00048344,30]
[355864475,1741645629765,-316.0,0.00048344,30]
[355864476,1741645629785,-316.0,0.00048344,30]
[355864477,1741645629806,-316.0,0.00048344,30]
[355864478,1741645629826,-316.0,0.00048344,30]
[355864479,1741645629848,-316.0,0.00048344,30]
[355864480,1741645629869,-316.0,0.00048344,30]
[355864481,1741645629889,-186.33667545,0.00048344,30]
[355864482,1741645637093,-129.66332455,0.00048344,30]
[355864483,1741645637116,-316.0,0.00048344,30]
[355864484,1741645637138,-341.70628028,0.00048344,30]
[355864485,1741645637159,-170.0,0.00048356,90]
[355864486,1741645637181,-214.17252556,0.00048361,28]
[355864487,1741645637203,-5760.63,0.00048369,120]
[355864488,1741645637224,-151.0,0.00048373,120]
[355864489,1741645637245,-183.39134414,0.00048373,2]
[355864490,1741645637269,-212.4915814,0.00048399,31]
[355864491,1741645637293,-234.78821758,0.00048399,120]
[355864492,1741645637319,-500.0,0.00048399,2]
[355864493,1741645637345,-500.0,0.00048399,2]
[355864494,1741645637371,-500.0,0.00048399,2]
[355864495,1741645637397,-500.0,0.00048399,2]
[355864496,1741645637424,-500.0,0.00048399,2]
[355864497,1741645637458,-500.0,0.00048399,2]
[355864498,1741645637484,-500.0,0.00048399,2]
[355864499,1741645637510,-644.364124,0.00048399,2]
[355864500,1741645637534,-287.18932949,0.00048399,2]
[355864501,1741645637556,-1000.0,0.000484,120]
[355864502,1741645637582,-151.0,0.000484,120]
[355864503,1741645637609,-151.0,0.000484,30]
[355864504,1741645637632,-151.0,0.000484,120]
[355864505,1741645637655,-151.0,0.000484,120]
[355864506,1741645637678,-151.0,0.000484,120]
[355864507,1741645637704,-158.150758,0.000484,120]
[355864508,1741645637727,-158.150758,0.000484,120]
[355864509,1741645637750,-151.0,0.000484,120]
[355864510,1741645637772,-151.0,0.000484,27]
[355864511,1741645637794,-151.0,0.000484,120]
[355864512,1741645637815,-368.282262,0.000484,120]
[355864513,1741645637836,-368.282262,0.000484,120]
[355864514,1741645637857,-55555.0,0.000484,120]
[355864515,1741645637877,-183.967461,0.000484,2]
[355864516,1741645637899,-431.66173482,0.00048461,2]
[355864517,1741645637923,-500.0,0.00048473,10]
[355864518,1741645637944,-500.0,0.00048473,10]
[355864519,1741645637965,-500.0,0.00048473,10]
[355864520,1741645637986,-500.0,0.00048473,10]
[355864521,1741645638007,-500.0,0.00048473,10]
[355864522,1741645638029,-500.0,0.00048473,10]
[355864523,1741645638053,-2000.0,0.0004848,120]
[355864524,1741645638080,-311.0,0.0004849,10]
[355864525,1741645638103,-235.97542,0.0004849,120]
[355864526,1741645638125,-151.0,0.0004849,30]
[355864527,1741645638147,-151.0,0.0004849,120]
[355864528,1741645638169,-151.0,0.0004849,120]
[355864529,1741645638192,-286.186529,0.0004849,120]
[355864530,1741645638215,-158.150758,0.0004849,120]
[355864531,1741645638238,-158.150758,0.0004849,120]
[355864532,1741645638260,-151.0,0.0004849,120]
[355864533,1741645638283,-151.0,0.0004849,120]
[355864534,1741645638306,-368.282262,0.0004849,120]
[355864535,1741645638329,-368.282262,0.0004849,120]
[355864536,1741645638352,-32064.8141893,0.0004849,4]
[355864537,1741645638376,-799.81085248,0.0004849,4]
[355864538,1741645638398,-500.02222481,0.00048495,120]
[355864539,1741645638421,-835.0,0.00048498,120]
[355864540,1741645638448,-352.0,0.00048499,30]
[355864541,1741645638471,-352.0,0.00048499,30]
[355864542,1741645638493,-352.0,0.00048499,30]
[355864543,1741645638517,-352.0,0.00048499,30]
[355864544,1741645638540,-352.0,0.00048499,30]
[355864545,1741645638562,-352.0,0.00048499,30]
[355864546,1741645638585,-352.0,0.00048499,30]
[355864547,1741645638607,-352.0,0.00048499,30]
[355864548,1741645638629,-352.0,0.00048499,30]
[355864549,1741645638653,-352.0,0.00048499,30]
[355864550,1741645638675,-352.0,0.00048499,30]
[355864551,1741645638697,-352.0,0.00048499,30]
[355864552,1741645638719,-352.0,0.00048499,30]
[355864553,1741645638740,-352.0,0.00048499,30]
[355864554,1741645638762,-352.0,0.00048499,30]
[355864555,1741645638785,-352.0,0.00048499,30]
[355864556,1741645638806,-352.0,0.00048499,30]
[355864557,1741645638828,-352.0,0.00048499,30]
[355864558,1741645638851,-352.0,0.00048499,30]
[355864559,1741645638874,-352.0,0.00048499,30]
[355864560,1741645638901,-352.0,0.00048499,30]
[355864561,1741645638924,-352.0,0.00048499,30]
[355864562,1741645638947,-352.0,0.00048499,30]
[355864563,1741645638969,-181.81665588,0.00048499,30]
[355864564,1741645638991,-311.0,0.00048499,30]
[355864565,1741645639014,-130865.01120422,0.000485,120]
[355864569,1741645723380,301.99999964,0.0002,120]
[355864570,1741645768082,-1695.17305744,0.000299,5]
[355864571,1741645768103,-5191.26217465,0.0003,30]
[355864572,1741645768124,-1887.42296062,0.0003,60]
[355864606,1741645832061,-635.19,0.0003,60]
[355864634,1741645837732,-248.38432538,0.0003,60]
[355864635,1741645837742,-747.678721,0.0004752,4]
[355864636,1741645837751,-175.79,0.00047599,30]
[355864637,1741645837761,-83745.23716813,0.000483,30]
[355864638,1741645837770,-328.08132486,0.00048373,2]
[355864639,1741645837780,-187.40095983,0.00048373,28]
[355864640,1741645837790,-4275.30855858,0.00048389,4]
[355864641,1741645837799,-2522.1,0.00048389,10]
[355864642,1741645837809,-2101.75,0.00048389,10]
[355864643,1741645837818,-164.35175231,0.00048398,120]
[355864644,1741645837829,-460.48490267,0.00048398,2]
[355864645,1741645837838,-500.0,0.00048398,2]
[355864646,1741645837847,-222000.0,0.00048399,2]
[355864647,1741645837857,-55555.0,0.000484,120]
[355864648,1741645837866,-500.0,0.00048473,10]
[355864649,1741645837876,-500.0,0.00048473,10]
[355864650,1741645837885,-8550.61711716,0.0004849,4]
[355864651,1741645837895,-311.62355178,0.0004849,4]
[355864652,1741645837906,-500.0,0.00048499,60]
[355864653,1741645837916,-269829.48876807,0.000485,120]
[355864654,1741645837925,-663.14,0.000485,30]
[355864655,1741645837935,-595.61,0.000485,30]
[355864656,1741645837944,-564.77,0.000485,30]
[355864657,1741645837953,-164.92,0.000485,30]
[355864658,1741645837963,-151.0,0.000485,120]
[355864659,1741645837972,-465.028969,0.000485,120]
[355864660,1741645837981,-151.0,0.000485,120]
[355864661,1741645837991,-166.0038,0.000485,120]
[355864662,1741645838001,-166.0038,0.000485,120]
[355864663,1741645838011,-151.0,0.000485,90]
[355864664,1741645838020,-395.167007,0.000485,110]
[355864665,1741645838029,-324.010013,0.000485,120]
[355864666,1741645838039,-324.010013,0.000485,120]
[355864667,1741645838049,-151.0,0.000485,120]
[355864668,1741645838059,-185.937292,0.000485,120]
[355864669,1741645838068,-239.073146,0.000485,120]
[355864670,1741645838079,-239.073146,0.000485,120]
[355864671,1741645838090,-151.0,0.000485,30]
[355864672,1741645838099,-164.682165,0.000485,120]
[355864673,1741645838110,-151.0,0.000485,120]
[355864674,1741645838120,-151.0,0.000485,120]
[355864675,1741645838129,-151.0,0.000485,120]
[355864676,1741645838139,-159.665694,0.000485,120]
[355864677,1741645838149,-151.0,0.000485,120]
[355864678,1741645838158,-250.0,0.000485,2]
[355864679,1741645838168,-250.0,0.000485,2]
[355864680,1741645838178,-151.0,0.000485,120]
[355864681,1741645838187,-160.666671,0.000485,120]
[355864682,1741645838198,-160.666671,0.000485,120]
[355864683,1741645838207,-151.0,0.000485,120]
[355864684,1741645838217,-151.0,0.000485,120]
[355864685,1741645838226,-427.013402,0.000485,120]
[355864686,1741645838235,-427.013402,0.000485,120]
[355864687,1741645838245,-151.0,0.000485,120]
[355864688,1741645838254,-151.0,0.000485,120]
[355864689,1741645838264,-151.0,0.000485,120]
[355864690,1741645838273,-161.747533,0.000485,120]
[355864691,1741645838282,-161.747533,0.000485,120]
[355864692,1741645838292,-151.0,0.000485,120]
[355864693,1741645838302,-158.124751,0.000485,120]
[355864694,1741645838311,-185.087068,0.000485,120]
[355864695,1741645838320,-158.124751,0.000485,120]
[355864696,1741645838331,-151.0,0.000485,120]
[355864697,1741645838340,-151.0,0.000485,120]
[355864698,1741645838349,-70137.88397348,0.000485,120]
[355864699,1741645838359,-151.0,0.000485,120]
[355864700,1741645838369,-500.0,0.00048501,6]
[355864701,1741645838378,-186.0,0.0004852,2]
[355864702,1741645838388,-158.759177,0.00048527,2]
[355864703,1741645838397,-712.234994,0.00048537,95]
[355864704,1741645838406,-179.0,0.00048569,2]
[355864705,1741645838416,-171.0,0.00048569,2]
[355864706,1741645838426,-500.0,0.00048574,120]
[355864707,1741645838435,-151.0,0.000486,27]
[355864708,1741645838445,-712.234994,0.00048637,96]
[355864709,1741645838460,-500.0,0.00048638,6]
[355864710,1741645838470,-650.29,0.000487,30]
[355864711,1741645838481,-1160.82,0.000487,30]
[355864712,1741645838491,-150.0,0.000487,120]
[355864713,1741645838500,-151.0,0.000487,22]
[355864714,1741645838510,-3000.0,0.000487,2]
[355864715,1741645838519,-1000.0,0.000487,60]
[355864716,1741645838529,-174.37709446,0.000487,120]
[355864717,1741645838539,-151.63386488,0.000487,120]
[355864718,1741645838548,-151.63386488,0.000487,120]
[355864719,1741645838557,-151.63386488,0.000487,120]
[355864720,1741645838569,-151.63386488,0.000487,120]
[355864721,1741645838580,-151.63386488,0.000487,120]
[355864722,1741645838590,-151.63386488,0.000487,120]
[355864723,1741645838599,-151.63386488,0.000487,120]
[355864724,1741645838609,-151.63386488,0.000487,120]
[355864725,1741645838618,-151.63386488,0.000487,120]
[355864726,1741645838628,-151.63386488,0.000487,120]
[355864727,1741645838638,-151.63386488,0.000487,120]
[355864728,1741645838647,-151.63386488,0.000487,120]
[355864729,1741645838656,-151.63386488,0.000487,120]
[355864730,1741645838666,-151.63386488,0.000487,120]
[355864731,1741645838676,-151.63386488,0.000487,120]
[355864732,1741645838685,-151.63386488,0.000487,120]
[355864733,1741645838695,-151.63386488,0.000487,120]
[355864734,1741645838705,-151.63,0.000487,120]
[355864735,1741645838715,-318.43111625,0.000487,120]
[355864736,1741645838724,-318.43111625,0.000487,120]
[355864737,1741645838734,-318.43111625,0.000487,120]
[355864738,1741645838743,-318.43111625,0.000487,120]
[355864739,1741645838752,-318.43111625,0.000487,120]
[355864740,1741645838762,-318.43111625,0.000487,120]
[355864741,1741645838772,-318.43111625,0.000487,120]
[355864742,1741645838781,-318.43111625,0.000487,120]
[355864743,1741645838791,-318.43111625,0.000487,120]
[355864744,1741645838800,-318.43111625,0.000487,120]
[355864745,1741645838810,-318.43111625,0.000487,120]
[355864746,1741645838819,-318.43111625,0.000487,120]
[355864747,1741645838830,-318.43111625,0.000487,120]
[355864748,1741645838839,-318.43111625,0.000487,120]
[355864749,1741645838849,-318.43111625,0.000487,120]
[355864750,1741645838859,-161.03017844,0.00048712,120]
[355864751,1741645838868,-712.234994,0.00048737,90]
[355864752,1741645838878,-151.0,0.00048742,120]
[355864753,1741645838888,-239.073146,0.00048742,120]
[355864754,1741645838897,-239.073146,0.00048742,120]
[355864755,1741645838907,-500.0,0.00048773,10]
[355864756,1741645838917,-500.0,0.00048773,10]
[355864757,1741645838926,-258.44043432,0.00048773,10]
[355864758,1741645838936,-500.0,0.00048773,10]
[355864759,1741645838948,-500.0,0.00048773,10]
[355864760,1741645838958,-500.0,0.00048775,6]
[355864761,1741645838967,-1425.10285286,0.0004878,4]
[355864762,1741645838977,-1425.10285286,0.00048789,4]
[355864763,1741645838986,-2850.20570572,0.0004879,4]
[355864764,1741645838996,-500.0,0.0004879,60]
[355864765,1741645839005,-508.21556026,0.0004879,60]
[355864766,1741645839014,-151.0,0.0004879,120]
[355864767,1741645839025,-151.0,0.0004879,120]
[355864768,1741645839035,-151.0,0.0004879,120]
[355864769,1741645839045,-151.0,0.0004879,120]
[355864770,1741645839054,-151.0,0.0004879,120]
[355864771,1741645839064,-151.0,0.0004879,120]
[355864772,1741645839074,-9975.71997002,0.0004879,4]
[355864773,1741645839083,-311.62355178,0.0004879,4]
[355864774,1741645839093,-66174.75153485,0.00048799,47]
[355864775,1741645839103,-166.0038,0.00048799,120]
[355864776,1741645839113,-166.0038,0.00048799,120]
[355864777,1741645839123,-289.833614,0.00048799,90]
[355864778,1741645839133,-395.167007,0.00048799,110]
[355864779,1741645839143,-395.167003,0.00048799,110]
[355864780,1741645839153,-151.0,0.00048799,30]
[355864781,1741645839162,-151.0,0.00048799,120]
[355864782,1741645839172,-151.0,0.00048799,120]
[355864783,1741645839182,-151.0,0.00048799,120]
[355864784,1741645839192,-250.0,0.00048799,2]
[355864785,1741645839203,-250.0,0.00048799,2]
[355864786,1741645839212,-151.0,0.00048799,120]
[355864787,1741645839222,-160.666671,0.00048799,120]
[355864788,1741645839232,-160.666671,0.00048799,120]
[355864789,1741645839242,-151.0,0.00048799,120]
[355864790,1741645839252,-151.0,0.00048799,120]
[355864791,1741645839262,-427.013402,0.00048799,120]
[355864792,1741645839272,-427.013402,0.00048799,120]
[355864793,1741645839282,-500.0,0.00048799,2]
[355864794,1741645839292,-500.0,0.00048799,2]
[355864795,1741645839302,-500.0,0.00048799,2]
[355864796,1741645839311,-500.0,0.00048799,2]
[355864798,1741645839320,-500.0,0.00048799,2]
[355864799,1741645839331,-500.0,0.00048799,2]
[355864800,1741645839342,-500.0,0.00048799,2]
[355864801,1741645839351,-500.0,0.00048799,2]
[355864802,1741645839361,-500.0,0.00048799,2]
[355864803,1741645839371,-500.0,0.00048799,2]
[355864804,1741645839380,-500.0,0.00048799,2]
[355864805,1741645839390,-500.0,0.00048799,2]
[355864806,1741645839399,-500.0,0.00048799,2]
[355864807,1741645839408,-500.0,0.00048799,2]
[355864808,1741645839418,-500.0,0.00048799,2]
[355864809,1741645839428,-500.0,0.00048799,2]
[355864810,1741645839438,-151.0,0.00048799,120]
[355864811,1741645839447,-500.0,0.00048799,2]
[355864812,1741645839456,-500.0,0.00048799,2]
[355864813,1741645839466,-500.0,0.00048799,2]
[355864814,1741645839477,-500.0,0.00048799,2]
[355864815,1741645839491,-500.0,0.00048799,2]
[355864816,1741645839501,-500.0,0.00048799,2]
[355864817,1741645839511,-500.0,0.00048799,2]
[355864818,1741645839522,-500.0,0.00048799,2]
[355864819,1741645839531,-500.0,0.00048799,2]
[355864820,1741645839542,-500.0,0.00048799,2]
[355864821,1741645839552,-500.0,0.00048799,2]
[355864822,1741645839562,-500.0,0.00048799,2]
[355864823,1741645839573,-500.0,0.00048799,2]
[355864824,1741645839582,-500.0,0.00048799,2]
[355864825,1741645839592,-500.0,0.00048799,2]
[355864827,1741645839601,-500.0,0.00048799,2]
[355864829,1741645839611,-768.77293019,0.00048799,2]
[355864831,1741645839620,-151.0,0.00048799,120]
[355864838,1741645839827,-151.0,0.00048799,120]
[355864839,1741645839838,-151.0,0.00048799,120]
[355864840,1741645839848,-161.747533,0.00048799,120]
[355864841,1741645839858,-161.747533,0.00048799,120]
[355864842,1741645839868,-151.0,0.00048799,120]
[355864843,1741645839879,-158.124751,0.00048799,120]
[355864844,1741645839888,-158.124751,0.00048799,120]
[355864845,1741645839898,-158.124751,0.00048799,120]
[355864846,1741645839908,-158.124751,0.00048799,120]
[355864847,1741645839919,-151.0,0.00048799,120]
[355864848,1741645839929,-151.0,0.00048799,120]
[355864849,1741645839939,-194.963878,0.00048799,120]
[355864850,1741645839949,-205.00501808,0.00048799,2]
[355864851,1741645839959,-150.47,0.00048799,2]
[355864852,1741645839968,-150.47,0.00048799,2]